[Event "Late-Titled-Tuesday-Blitz-February-20-2024"]
[Site "Chess.com"]
[Date "2024.02.20"]
[Round "7"]
[White "Rashad_Zeynalli"]
[Black "Hasangatin_Ramil"]
[Result "0-1"]
[WhiteElo "2651"]
[BlackElo "2688"]
[TimeControl "180+1"]
[EndTime "15:17:19 PST"]
[Termination "Hasangatin_Ramil won by resignation"]

1. e4 {[%clk 0:03:00.9]} 1... d5 {[%clk 0:02:39.3]} 2. exd5 {[%clk 0:03:00.4]}
2... Qxd5 {[%clk 0:02:39.7]} 3. Nc3 {[%clk 0:03:01]} 3... Qd6 {[%clk 0:02:39.9]}
4. d4 {[%clk 0:03:01.2]} 4... Nf6 {[%clk 0:02:40.5]} 5. Nf3 {[%clk 0:03:01.3]}
5... a6 {[%clk 0:02:40.6]} 6. g3 {[%clk 0:03:01.2]} 6... b5 {[%clk 0:02:40.9]}
7. Bg2 {[%clk 0:03:00.4]} 7... Bb7 {[%clk 0:02:41.1]} 8. O-O {[%clk 0:02:58.6]}
8... e6 {[%clk 0:02:41.4]} 9. Bf4 {[%clk 0:02:57.4]} 9... Qb6 {[%clk 0:02:41.2]}
10. a4 {[%clk 0:02:55.5]} 10... Bd6 {[%clk 0:02:41.4]} 11. Bxd6 {[%clk
0:02:53.5]} 11... cxd6 {[%clk 0:02:41.2]} 12. axb5 {[%clk 0:02:51.5]} 12... axb5
{[%clk 0:02:40.8]} 13. Qe2 {[%clk 0:02:51.1]} 13... b4 {[%clk 0:02:34.8]} 14.
Qb5+ {[%clk 0:02:45.9]} 14... Nbd7 {[%clk 0:02:29.7]} 15. Qxb6 {[%clk
0:02:35.5]} 15... Nxb6 {[%clk 0:02:27.8]} 16. Nb5 {[%clk 0:02:36.1]} 16... Kd7
{[%clk 0:02:23.2]} 17. Rxa8 {[%clk 0:02:28.9]} 17... Rxa8 {[%clk 0:02:21]} 18.
Ne5+ {[%clk 0:02:29.2]} 18... dxe5 {[%clk 0:02:14.3]} 19. Bxb7 {[%clk
0:02:28.6]} 19... Ra5 {[%clk 0:01:59.1]} 20. dxe5 {[%clk 0:02:25]} 20... Rxb5
{[%clk 0:01:57.8]} 21. exf6 {[%clk 0:02:24.5]} 21... gxf6 {[%clk 0:01:57.2]} 22.
Rd1+ {[%clk 0:02:20]} 22... Kc7 {[%clk 0:01:57]} 23. Be4 {[%clk 0:02:14.1]}
23... f5 {[%clk 0:01:56.4]} 24. Bd3 {[%clk 0:02:14.5]} 24... Ra5 {[%clk
0:01:50.3]} 25. Kg2 {[%clk 0:01:59]} 25... Na4 {[%clk 0:01:49.1]} 26. Ra1 {[%clk
0:01:50.6]} 26... Kb6 {[%clk 0:01:47.4]} 27. b3 {[%clk 0:01:47.4]} 27... Nc3
{[%clk 0:01:37.8]} 28. Rxa5 {[%clk 0:01:45.4]} 28... Kxa5 {[%clk 0:01:38.7]} 29.
Kh3 {[%clk 0:01:36.5]} 29... Kb6 {[%clk 0:01:31.4]} 30. Kh4 {[%clk 0:01:36]}
30... Nd1 {[%clk 0:01:21.6]} 31. f3 {[%clk 0:01:27.6]} 31... Nf2 {[%clk
0:01:16]} 32. Bc4 {[%clk 0:01:17.3]} 32... Kc5 {[%clk 0:01:15.8]} 33. Kg5 {[%clk
0:01:13.4]} 33... Kd4 {[%clk 0:01:10.9]} 34. Kf6 {[%clk 0:01:05.2]} 34... Nd1
{[%clk 0:00:52.3]} 35. f4 {[%clk 0:00:40]} 35... Ne3 {[%clk 0:00:51.7]} 36. Bd3
{[%clk 0:00:39.6]} 36... Kc3 {[%clk 0:00:41.1]} 37. Kxf7 {[%clk 0:00:39.5]}
37... Nxc2 {[%clk 0:00:41.3]} 38. Bc4 {[%clk 0:00:39.7]} 38... Nd4 {[%clk
0:00:36.4]} 39. h3 {[%clk 0:00:30.8]} 39... Nxb3 {[%clk 0:00:35.4]} 40. Bxe6
{[%clk 0:00:30.7]} 40... Nd4 {[%clk 0:00:31.9]} 41. Bd5 {[%clk 0:00:29.8]} 41...
Ne2 {[%clk 0:00:25.5]} 42. Kg7 {[%clk 0:00:24.2]} 42... h5 {[%clk 0:00:22.7]}
43. Kg6 {[%clk 0:00:17.8]} 43... h4 {[%clk 0:00:21.8]} 44. gxh4 {[%clk
0:00:14.3]} 44... Nxf4+ {[%clk 0:00:21.8]} 45. Kxf5 {[%clk 0:00:14.7]} 45...
Nxd5 {[%clk 0:00:22.1]} 46. h5 {[%clk 0:00:15.3]} 46... b3 {[%clk 0:00:20.8]}
47. h6 {[%clk 0:00:15.7]} 47... b2 {[%clk 0:00:21.2]} 48. h7 {[%clk 0:00:16]}
48... b1=Q+ {[%clk 0:00:21.6]} 0-1

[Event "Late-Titled-Tuesday-Blitz-February-20-2024"]
[Site "Chess.com"]
[Date "2024.02.20"]
[Round "7"]
[White "ajeale2"]
[Black "rionelG"]
[Result "1-0"]
[WhiteElo "2498"]
[BlackElo "2226"]
[TimeControl "180+1"]
[EndTime "15:17:21 PST"]
[Termination "ajeale2 won on time"]

1. d4 {[%clk 0:03:00.9]} 1... d5 {[%clk 0:02:59.1]} 2. Bf4 {[%clk 0:03:01.3]}
2... c5 {[%clk 0:02:57.6]} 3. e3 {[%clk 0:03:01.7]} 3... Nc6 {[%clk 0:02:58.3]}
4. c3 {[%clk 0:03:02.3]} 4... Nf6 {[%clk 0:02:59]} 5. Nd2 {[%clk 0:03:02.8]}
5... g6 {[%clk 0:02:59.5]} 6. Ngf3 {[%clk 0:03:02.9]} 6... Bg7 {[%clk 0:03:00]}
7. Be2 {[%clk 0:03:03.4]} 7... Nd7 {[%clk 0:03:00.4]} 8. h4 {[%clk 0:02:59.6]}
8... h5 {[%clk 0:02:57.7]} 9. Qb3 {[%clk 0:02:52.3]} 9... c4 {[%clk 0:02:41.1]}
10. Qc2 {[%clk 0:02:52.2]} 10... e5 {[%clk 0:02:40.5]} 11. Bg5 {[%clk
0:02:45.5]} 11... f6 {[%clk 0:02:38.5]} 12. Qxg6+ {[%clk 0:02:44.8]} 12... Kf8
{[%clk 0:02:39.4]} 13. e4 {[%clk 0:02:26]} 13... fxg5 {[%clk 0:02:33.1]} 14.
Nxg5 {[%clk 0:02:25.8]} 14... Qf6 {[%clk 0:02:29.3]} 15. Ne6+ {[%clk 0:02:17]}
15... Kg8 {[%clk 0:02:28.6]} 16. Qe8+ {[%clk 0:02:10.7]} 16... Nf8 {[%clk
0:02:25.4]} 17. exd5 {[%clk 0:02:05.3]} 17... Nb8 {[%clk 0:01:38]} 18. Qxc8
{[%clk 0:02:02.5]} 18... exd4 {[%clk 0:01:32.9]} 19. cxd4 {[%clk 0:01:55.4]}
19... Qe7 {[%clk 0:01:21.7]} 20. d6 {[%clk 0:01:50.5]} 20... Qxd6 {[%clk
0:01:19.6]} 21. Nc7 {[%clk 0:01:42]} 21... Nc6 {[%clk 0:01:12.7]} 22. Bxc4+
{[%clk 0:01:41.6]} 22... Kh7 {[%clk 0:01:10.5]} 23. Qf5+ {[%clk 0:01:41.5]}
23... Ng6 {[%clk 0:01:08.8]} 24. Nxa8 {[%clk 0:01:37.7]} 24... Rxa8 {[%clk
0:01:09.7]} 25. Qxh5+ {[%clk 0:01:35.1]} 25... Bh6 {[%clk 0:01:09.1]} 26. Bd3
{[%clk 0:01:27.3]} 26... Re8+ {[%clk 0:01:04.1]} 27. Kf1 {[%clk 0:01:27]} 27...
Re6 {[%clk 0:00:49.7]} 28. Nf3 {[%clk 0:01:23.7]} 28... Rf6 {[%clk 0:00:39.6]}
29. Rd1 {[%clk 0:00:57.5]} 29... Kg7 {[%clk 0:00:38.8]} 30. Qc5 {[%clk
0:00:47.3]} 30... Qf4 {[%clk 0:00:35.2]} 31. h5 {[%clk 0:00:44.5]} 31... Nge7
{[%clk 0:00:16.8]} 32. Rh4 {[%clk 0:00:44.4]} 32... Qc7 {[%clk 0:00:14.1]} 33.
d5 {[%clk 0:00:40.2]} 33... b6 {[%clk 0:00:13.6]} 34. Rg4+ {[%clk 0:00:36.8]}
34... Kf8 {[%clk 0:00:13.2]} 35. Qc4 {[%clk 0:00:26.4]} 35... b5 {[%clk
0:00:11.7]} 36. Qc5 {[%clk 0:00:25.4]} 36... Qd6 {[%clk 0:00:03.3]} 37. Qxd6
{[%clk 0:00:25.1]} 37... Rxd6 {[%clk 0:00:03.8]} 38. dxc6 {[%clk 0:00:25.7]}
38... Nxc6 {[%clk 0:00:04.7]} 39. Rg6 {[%clk 0:00:26]} 39... Rxg6 {[%clk
0:00:04.1]} 40. Bxg6 {[%clk 0:00:25.8]} 40... Nb4 {[%clk 0:00:04.3]} 41. a3
{[%clk 0:00:24.9]} 41... Na6 {[%clk 0:00:03.6]} 42. Rd6 {[%clk 0:00:23.5]} 42...
Nc5 {[%clk 0:00:03.3]} 43. Bf5 {[%clk 0:00:20.1]} 43... Bg5 {[%clk 0:00:02.7]}
44. Rd5 {[%clk 0:00:20.6]} 1-0

[Event "Late-Titled-Tuesday-Blitz-February-20-2024"]
[Site "Chess.com"]
[Date "2024.02.20"]
[Round "7"]
[White "Bilan_Danila"]
[Black "janhelmer03"]
[Result "1-0"]
[WhiteElo "2465"]
[BlackElo "2275"]
[TimeControl "180+1"]
[EndTime "15:17:22 PST"]
[Termination "Bilan_Danila won by resignation"]

1. d4 {[%clk 0:03:00.9]} 1... d5 {[%clk 0:02:59.6]} 2. Nf3 {[%clk 0:03:01.5]}
2... Nf6 {[%clk 0:02:58.9]} 3. c4 {[%clk 0:03:02.2]} 3... c6 {[%clk 0:02:59.1]}
4. Nc3 {[%clk 0:03:02.6]} 4... e6 {[%clk 0:02:59.1]} 5. Bg5 {[%clk 0:03:02.2]}
5... h6 {[%clk 0:02:56]} 6. Bxf6 {[%clk 0:03:01.1]} 6... Qxf6 {[%clk 0:02:56.5]}
7. e3 {[%clk 0:03:01.7]} 7... g6 {[%clk 0:02:54.3]} 8. Be2 {[%clk 0:03:00]} 8...
Nd7 {[%clk 0:02:54.4]} 9. O-O {[%clk 0:03:00.1]} 9... Bg7 {[%clk 0:02:54.6]} 10.
Rc1 {[%clk 0:02:50.3]} 10... O-O {[%clk 0:02:54.4]} 11. b4 {[%clk 0:02:49.8]}
11... Nb6 {[%clk 0:02:11.1]} 12. Ne5 {[%clk 0:02:19.6]} 12... Qe7 {[%clk
0:02:04.2]} 13. c5 {[%clk 0:02:17.9]} 13... Nd7 {[%clk 0:02:01.8]} 14. f4 {[%clk
0:02:15.5]} 14... Kh7 {[%clk 0:02:00.5]} 15. Qc2 {[%clk 0:02:08.2]} 15... f5
{[%clk 0:01:57.7]} 16. b5 {[%clk 0:02:00]} 16... Nxe5 {[%clk 0:01:57.5]} 17.
fxe5 {[%clk 0:01:59.8]} 17... Bd7 {[%clk 0:01:56.1]} 18. Rb1 {[%clk 0:01:51.8]}
18... Qg5 {[%clk 0:01:47.9]} 19. Rf3 {[%clk 0:01:23.8]} 19... Rfc8 {[%clk
0:01:40.3]} 20. a4 {[%clk 0:01:19.7]} 20... b6 {[%clk 0:01:36.1]} 21. bxc6
{[%clk 0:01:17.6]} 21... Bxc6 {[%clk 0:01:29.6]} 22. Ba6 {[%clk 0:01:12.2]}
22... Rc7 {[%clk 0:01:05.2]} 23. cxb6 {[%clk 0:01:10.7]} 23... axb6 {[%clk
0:01:04.2]} 24. Qd3 {[%clk 0:00:57.9]} 24... Bb7 {[%clk 0:00:36.6]} 25. Bb5
{[%clk 0:00:43.9]} 25... Rac8 {[%clk 0:00:35.1]} 26. Ne2 {[%clk 0:00:44]} 26...
Rc2 {[%clk 0:00:30.7]} 27. Nf4 {[%clk 0:00:44.3]} 27... Qe7 {[%clk 0:00:30.7]}
28. Rf2 {[%clk 0:00:38.6]} 28... R2c3 {[%clk 0:00:29.9]} 29. Qe2 {[%clk
0:00:34]} 29... g5 {[%clk 0:00:26.5]} 30. Nh5 {[%clk 0:00:33.8]} 30... Bh8
{[%clk 0:00:26.8]} 31. g4 {[%clk 0:00:33.8]} 31... Qf7 {[%clk 0:00:15]} 32. Bd3
{[%clk 0:00:29.9]} 32... Rc1+ {[%clk 0:00:15.1]} 33. Rxc1 {[%clk 0:00:29]} 33...
Rxc1+ {[%clk 0:00:16]} 34. Kg2 {[%clk 0:00:29.3]} 34... Kg8 {[%clk 0:00:15.5]}
35. gxf5 {[%clk 0:00:27.2]} 35... exf5 {[%clk 0:00:11.1]} 36. Rxf5 {[%clk
0:00:23.9]} 36... Qd7 {[%clk 0:00:10.8]} 37. Qf3 {[%clk 0:00:18.6]} 37... Bg7
{[%clk 0:00:07.6]} 38. Nf6+ {[%clk 0:00:16.3]} 38... Bxf6 {[%clk 0:00:06.5]} 39.
Rxf6 {[%clk 0:00:16.9]} 39... g4 {[%clk 0:00:04.2]} 40. Rf8+ {[%clk 0:00:11.6]}
1-0

[Event "Late-Titled-Tuesday-Blitz-February-20-2024"]
[Site "Chess.com"]
[Date "2024.02.20"]
[Round "7"]
[White "Polstastisch"]
[Black "SHIVACalypso"]
[Result "1-0"]
[WhiteElo "2432"]
[BlackElo "2503"]
[TimeControl "180+1"]
[EndTime "15:17:23 PST"]
[Termination "Polstastisch won by checkmate"]

1. e4 {[%clk 0:02:54.5]} 1... e6 {[%clk 0:02:58]} 2. Nc3 {[%clk 0:02:53.1]} 2...
d5 {[%clk 0:02:57.9]} 3. d4 {[%clk 0:02:52.9]} 3... Nf6 {[%clk 0:02:58.2]} 4.
Bg5 {[%clk 0:02:49.9]} 4... Be7 {[%clk 0:02:52.4]} 5. e5 {[%clk 0:02:49.3]} 5...
Nfd7 {[%clk 0:02:52.3]} 6. h4 {[%clk 0:02:44.3]} 6... h6 {[%clk 0:02:49]} 7.
Bxe7 {[%clk 0:02:41.6]} 7... Qxe7 {[%clk 0:02:49.9]} 8. Qg4 {[%clk 0:02:40.5]}
8... Kf8 {[%clk 0:02:42.7]} 9. O-O-O {[%clk 0:02:35]} 9... a6 {[%clk 0:02:40.1]}
10. f4 {[%clk 0:02:29.7]} 10... c5 {[%clk 0:02:40.2]} 11. Nf3 {[%clk 0:02:29.6]}
11... Nc6 {[%clk 0:02:40.3]} 12. h5 {[%clk 0:02:27.8]} 12... b5 {[%clk
0:02:39.5]} 13. Rh3 {[%clk 0:02:25.5]} 13... c4 {[%clk 0:02:33.5]} 14. Nh4
{[%clk 0:02:16.7]} 14... b4 {[%clk 0:02:33.7]} 15. Rg3 {[%clk 0:02:07.8]} 15...
Rg8 {[%clk 0:02:22.1]} 16. Na4 {[%clk 0:01:48.7]} 16... Rb8 {[%clk 0:02:15.7]}
17. f5 {[%clk 0:01:38]} 17... Qg5+ {[%clk 0:02:02.4]} 18. Qxg5 {[%clk
0:01:33.7]} 18... hxg5 {[%clk 0:02:03.3]} 19. Rxg5 {[%clk 0:01:24.8]} 19... exf5
{[%clk 0:01:50]} 20. Nxf5 {[%clk 0:01:18.7]} 20... Nd8 {[%clk 0:01:30]} 21. Nd6
{[%clk 0:00:59.4]} 21... Rh8 {[%clk 0:01:17.6]} 22. Be2 {[%clk 0:00:57.7]} 22...
Nb7 {[%clk 0:01:05.1]} 23. Nxc8 {[%clk 0:00:51.4]} 23... Rxc8 {[%clk 0:01:06]}
24. Bg4 {[%clk 0:00:50.2]} 24... Rc7 {[%clk 0:01:01.6]} 25. Rf1 {[%clk
0:00:47.5]} 25... Kg8 {[%clk 0:00:52.3]} 26. e6 {[%clk 0:00:38.7]} 26... Nf6
{[%clk 0:00:50]} 27. Rxf6 {[%clk 0:00:36.3]} 27... Re7 {[%clk 0:00:48.6]} 28.
Rxf7 {[%clk 0:00:34.6]} 28... Rxf7 {[%clk 0:00:44.3]} 29. exf7+ {[%clk
0:00:35.5]} 29... Kxf7 {[%clk 0:00:45.2]} 30. Rf5+ {[%clk 0:00:35.3]} 30... Ke7
{[%clk 0:00:44.5]} 31. Rxd5 {[%clk 0:00:33.5]} 31... Nd6 {[%clk 0:00:43.3]} 32.
Re5+ {[%clk 0:00:31.6]} 32... Kd8 {[%clk 0:00:43.4]} 33. Nc5 {[%clk 0:00:30.1]}
33... c3 {[%clk 0:00:39.8]} 34. bxc3 {[%clk 0:00:29]} 34... bxc3 {[%clk
0:00:40.7]} 35. Kd1 {[%clk 0:00:22.3]} 35... Nc4 {[%clk 0:00:31.9]} 36. Rd5+
{[%clk 0:00:20.5]} 36... Kc7 {[%clk 0:00:32.5]} 37. Rd7+ {[%clk 0:00:20.1]}
37... Kb6 {[%clk 0:00:30.6]} 38. Rxg7 {[%clk 0:00:20.1]} 38... Re8 {[%clk
0:00:23.6]} 39. Be2 {[%clk 0:00:18.8]} 39... Ne3+ {[%clk 0:00:18.7]} 40. Kc1
{[%clk 0:00:17.8]} 40... Nd5 {[%clk 0:00:17.4]} 41. Nd7+ {[%clk 0:00:17.1]}
41... Ka5 {[%clk 0:00:12.1]} 42. Ne5 {[%clk 0:00:17.4]} 42... Nf4 {[%clk
0:00:11]} 43. Bf3 {[%clk 0:00:16.1]} 43... Ne6 {[%clk 0:00:11.3]} 44. Rc7 {[%clk
0:00:15]} 44... Nxd4 {[%clk 0:00:11.2]} 45. Rc5+ {[%clk 0:00:14.6]} 45... Kb6
{[%clk 0:00:09.5]} 46. Nd7+ {[%clk 0:00:14.2]} 46... Ka7 {[%clk 0:00:08.2]} 47.
Rc7# {[%clk 0:00:14.8]} 1-0

[Event "Late-Titled-Tuesday-Blitz-February-20-2024"]
[Site "Chess.com"]
[Date "2024.02.20"]
[Round "7"]
[White "Bala-Afiada"]
[Black "igorknyazev"]
[Result "0-1"]
[WhiteElo "1962"]
[BlackElo "2204"]
[TimeControl "180+1"]
[EndTime "15:17:23 PST"]
[Termination "igorknyazev won on time"]

1. d4 {[%clk 0:01:58.9]} 1... Nf6 {[%clk 0:02:22.4]} 2. c4 {[%clk 0:01:58.5]}
2... c5 {[%clk 0:02:22.2]} 3. d5 {[%clk 0:01:54.5]} 3... b5 {[%clk 0:02:22.6]}
4. cxb5 {[%clk 0:01:54.2]} 4... a6 {[%clk 0:02:23.4]} 5. b6 {[%clk 0:01:54.8]}
5... g6 {[%clk 0:02:23]} 6. Nc3 {[%clk 0:01:55.4]} 6... d6 {[%clk 0:02:23.6]} 7.
a4 {[%clk 0:01:51.3]} 7... Qxb6 {[%clk 0:02:22.8]} 8. Nf3 {[%clk 0:01:51.5]}
8... Bg7 {[%clk 0:02:22.5]} 9. e4 {[%clk 0:01:47.5]} 9... O-O {[%clk 0:02:19.9]}
10. Nd2 {[%clk 0:01:47.3]} 10... Nbd7 {[%clk 0:02:13.8]} 11. Nc4 {[%clk
0:01:47]} 11... Qb7 {[%clk 0:02:11.6]} 12. Na5 {[%clk 0:01:43.2]} 12... Qc7
{[%clk 0:02:11.3]} 13. Nc6 {[%clk 0:01:41.7]} 13... Re8 {[%clk 0:02:11]} 14. Be2
{[%clk 0:01:24.1]} 14... e6 {[%clk 0:02:11.4]} 15. O-O {[%clk 0:00:59]} 15...
exd5 {[%clk 0:02:10.6]} 16. exd5 {[%clk 0:00:57.1]} 16... Bb7 {[%clk 0:02:10.9]}
17. Bf3 {[%clk 0:00:50.1]} 17... Bxc6 {[%clk 0:01:53.5]} 18. dxc6 {[%clk
0:00:48.8]} 18... Ne5 {[%clk 0:01:53.3]} 19. Nd5 {[%clk 0:00:38.5]} 19... Nxf3+
{[%clk 0:01:49.9]} 20. Qxf3 {[%clk 0:00:39]} 20... Nxd5 {[%clk 0:01:50.2]} 21.
Qxd5 {[%clk 0:00:39]} 21... Re5 {[%clk 0:01:50.6]} 22. Qf3 {[%clk 0:00:38.9]}
22... Rae8 {[%clk 0:01:44.7]} 23. Bf4 {[%clk 0:00:37.6]} 23... Rf5 {[%clk
0:01:39.6]} 24. Rfe1 {[%clk 0:00:23.9]} 24... Be5 {[%clk 0:01:39.6]} 25. g3
{[%clk 0:00:17.4]} 25... Re6 {[%clk 0:01:34.2]} 26. Qg4 {[%clk 0:00:12.7]} 26...
Bxf4 {[%clk 0:01:32.5]} 27. Rxe6 {[%clk 0:00:11.1]} 27... fxe6 {[%clk
0:01:30.3]} 28. gxf4 {[%clk 0:00:10.7]} 28... Qxc6 {[%clk 0:01:26.6]} 29. Re1
{[%clk 0:00:11]} 29... Qd5 {[%clk 0:01:23.6]} 30. Qh4 {[%clk 0:00:10.3]} 30...
Qc4 {[%clk 0:01:10.7]} 31. Qd8+ {[%clk 0:00:06.8]} 31... Kg7 {[%clk 0:01:08.6]}
32. Qe7+ {[%clk 0:00:06.4]} 32... Rf7 {[%clk 0:01:07.3]} 33. Qxe6 {[%clk
0:00:06]} 33... Qxe6 {[%clk 0:00:57.5]} 34. Rxe6 {[%clk 0:00:05.8]} 34... Rxf4
{[%clk 0:00:55.8]} 35. Rxd6 {[%clk 0:00:06.1]} 35... Rxa4 {[%clk 0:00:56.1]} 36.
Rc6 {[%clk 0:00:06.1]} 36... c4 {[%clk 0:00:54.3]} 37. Kg2 {[%clk 0:00:05.7]}
37... Kf7 {[%clk 0:00:50.4]} 38. Kf3 {[%clk 0:00:06.1]} 38... g5 {[%clk
0:00:49.9]} 39. Ke3 {[%clk 0:00:05.2]} 39... h5 {[%clk 0:00:49.9]} 40. Kd4
{[%clk 0:00:05]} 40... Ke7 {[%clk 0:00:48.3]} 41. Rxc4 {[%clk 0:00:05.3]} 41...
Ra2 {[%clk 0:00:24.9]} 42. Rc5 {[%clk 0:00:05.7]} 42... Kf6 {[%clk 0:00:24.6]}
43. Kc3 {[%clk 0:00:04.1]} 43... h4 {[%clk 0:00:23.6]} 44. h3 {[%clk 0:00:03.1]}
44... Ra1 {[%clk 0:00:22.7]} 45. Rc6+ {[%clk 0:00:02.2]} 45... Kf5 {[%clk
0:00:22.2]} 46. Rc5+ {[%clk 0:00:01.9]} 46... Kf4 {[%clk 0:00:21.9]} 0-1

[Event "Late-Titled-Tuesday-Blitz-February-20-2024"]
[Site "Chess.com"]
[Date "2024.02.20"]
[Round "7"]
[White "alexrustemov"]
[Black "NoHeThTo"]
[Result "0-1"]
[WhiteElo "2860"]
[BlackElo "2638"]
[TimeControl "180+1"]
[EndTime "15:17:26 PST"]
[Termination "NoHeThTo won on time"]

1. d4 {[%clk 0:03:00.9]} 1... Nf6 {[%clk 0:02:57.7]} 2. c4 {[%clk 0:03:00.3]}
2... g6 {[%clk 0:02:57.9]} 3. Nf3 {[%clk 0:03:00.7]} 3... Bg7 {[%clk 0:02:58.3]}
4. g3 {[%clk 0:03:01.4]} 4... O-O {[%clk 0:02:59]} 5. Bg2 {[%clk 0:03:02]} 5...
d6 {[%clk 0:02:59.9]} 6. Nc3 {[%clk 0:03:02.2]} 6... Nc6 {[%clk 0:03:00.3]} 7.
O-O {[%clk 0:03:01.8]} 7... e5 {[%clk 0:03:00.7]} 8. d5 {[%clk 0:03:01.9]} 8...
Nb8 {[%clk 0:02:59.9]} 9. e4 {[%clk 0:03:02.2]} 9... a5 {[%clk 0:02:59.7]} 10.
Rb1 {[%clk 0:03:01.1]} 10... Na6 {[%clk 0:02:59.5]} 11. b3 {[%clk 0:02:55.6]}
11... Nc5 {[%clk 0:02:59.1]} 12. Re1 {[%clk 0:02:54.2]} 12... Ne8 {[%clk
0:02:54.5]} 13. a3 {[%clk 0:02:53.1]} 13... f5 {[%clk 0:02:54.3]} 14. exf5
{[%clk 0:02:46.7]} 14... gxf5 {[%clk 0:02:48.5]} 15. Bg5 {[%clk 0:02:31.2]}
15... Bf6 {[%clk 0:02:46.4]} 16. Bxf6 {[%clk 0:02:29.3]} 16... Qxf6 {[%clk
0:02:46.8]} 17. b4 {[%clk 0:02:20.9]} 17... axb4 {[%clk 0:02:45.9]} 18. axb4
{[%clk 0:02:20.6]} 18... Ne4 {[%clk 0:02:41.3]} 19. Qc2 {[%clk 0:02:03]} 19...
Ng7 {[%clk 0:02:23.2]} 20. Nd2 {[%clk 0:01:49.6]} 20... Ng5 {[%clk 0:02:07.1]}
21. Nb5 {[%clk 0:01:42.2]} 21... f4 {[%clk 0:01:46.8]} 22. Ne4 {[%clk
0:01:37.9]} 22... Nxe4 {[%clk 0:01:45.5]} 23. Bxe4 {[%clk 0:01:38.6]} 23... Bf5
{[%clk 0:01:41.4]} 24. Nxc7 {[%clk 0:01:34.7]} 24... Bxe4 {[%clk 0:01:39.6]} 25.
Rxe4 {[%clk 0:01:33]} 25... Ra3 {[%clk 0:01:38.3]} 26. Nb5 {[%clk 0:01:24.1]}
26... Rf3 {[%clk 0:01:38.1]} 27. Re2 {[%clk 0:01:08.7]} 27... fxg3 {[%clk
0:01:36.5]} 28. hxg3 {[%clk 0:01:08.6]} 28... Nh5 {[%clk 0:01:36.4]} 29. Rb3
{[%clk 0:01:02]} 29... Rf5 {[%clk 0:00:52.6]} 30. Kg2 {[%clk 0:00:47.2]} 30...
Qg5 {[%clk 0:00:44.8]} 31. Kh2 {[%clk 0:00:34.3]} 31... Rf3 {[%clk 0:00:38.2]}
32. Rxf3 {[%clk 0:00:32.7]} 32... Rxf3 {[%clk 0:00:37.9]} 33. Qe4 {[%clk
0:00:32]} 33... Rxf2+ {[%clk 0:00:35.4]} 34. Rxf2 {[%clk 0:00:28]} 34... Qxg3+
{[%clk 0:00:34.3]} 35. Kh1 {[%clk 0:00:28.6]} 35... Qxf2 {[%clk 0:00:34.9]} 36.
Qg4+ {[%clk 0:00:28.4]} 36... Ng7 {[%clk 0:00:27.8]} 37. Qc8+ {[%clk 0:00:28.4]}
37... Kf7 {[%clk 0:00:26.5]} 38. Nxd6+ {[%clk 0:00:28]} 38... Kg6 {[%clk
0:00:23.9]} 39. Qg4+ {[%clk 0:00:27.4]} 39... Kh6 {[%clk 0:00:24.2]} 40. Ne4
{[%clk 0:00:22.6]} 40... Qf1+ {[%clk 0:00:21.4]} 41. Kh2 {[%clk 0:00:22.4]}
41... Qc1 {[%clk 0:00:12.8]} 42. d6 {[%clk 0:00:19.3]} 42... Nh5 {[%clk
0:00:10.2]} 43. Qg5+ {[%clk 0:00:09.7]} 43... Qxg5 {[%clk 0:00:09.6]} 0-1

[Event "Late-Titled-Tuesday-Blitz-February-20-2024"]
[Site "Chess.com"]
[Date "2024.02.20"]
[Round "7"]
[White "Hui_Li_Macau"]
[Black "TemploVillamarin"]
[Result "1-0"]
[WhiteElo "2353"]
[BlackElo "2184"]
[TimeControl "180+1"]
[EndTime "15:17:27 PST"]
[Termination "Hui_Li_Macau won by resignation"]

1. e4 {[%clk 0:03:00.9]} 1... d5 {[%clk 0:02:59.7]} 2. exd5 {[%clk 0:03:00.9]}
2... Qxd5 {[%clk 0:03:00.6]} 3. Nc3 {[%clk 0:03:01.1]} 3... Qa5 {[%clk 0:03:01]}
4. d4 {[%clk 0:03:01.7]} 4... Nf6 {[%clk 0:03:01]} 5. Nf3 {[%clk 0:03:02]} 5...
Nc6 {[%clk 0:03:01]} 6. Bb5 {[%clk 0:02:57.7]} 6... Nd5 {[%clk 0:02:53.9]} 7.
Bd2 {[%clk 0:02:48.3]} 7... Nxc3 {[%clk 0:02:53.5]} 8. Bxc6+ {[%clk 0:02:48.4]}
8... bxc6 {[%clk 0:02:54.4]} 9. Bxc3 {[%clk 0:02:42.9]} 9... Qd5 {[%clk
0:02:54.2]} 10. h3 {[%clk 0:02:16.3]} 10... Ba6 {[%clk 0:02:52.3]} 11. Qd2
{[%clk 0:01:58.2]} 11... g6 {[%clk 0:02:48.2]} 12. b3 {[%clk 0:01:50]} 12... h5
{[%clk 0:02:45.8]} 13. Qe3 {[%clk 0:01:29]} 13... Bg7 {[%clk 0:02:29.9]} 14. Bb2
{[%clk 0:01:24.8]} 14... O-O {[%clk 0:02:08.1]} 15. c4 {[%clk 0:01:20]} 15...
Qf5 {[%clk 0:02:05.5]} 16. O-O {[%clk 0:01:09.9]} 16... c5 {[%clk 0:02:03.4]}
17. Bc3 {[%clk 0:01:02]} 17... cxd4 {[%clk 0:01:59.1]} 18. Bxd4 {[%clk
0:01:01.9]} 18... Bxd4 {[%clk 0:01:54.7]} 19. Nxd4 {[%clk 0:01:01.9]} 19... Qf6
{[%clk 0:01:51.5]} 20. Rad1 {[%clk 0:00:54.2]} 20... Bb7 {[%clk 0:01:46.6]} 21.
Nb5 {[%clk 0:00:47.2]} 21... Qc6 {[%clk 0:01:35.8]} 22. f3 {[%clk 0:00:45.7]}
22... a6 {[%clk 0:01:33.5]} 23. Nc3 {[%clk 0:00:45.7]} 23... Qf6 {[%clk
0:01:15.2]} 24. Nd5 {[%clk 0:00:40.1]} 24... Bxd5 {[%clk 0:01:13.5]} 25. Rxd5
{[%clk 0:00:41]} 25... Rad8 {[%clk 0:01:11.5]} 26. Rfd1 {[%clk 0:00:26.1]} 26...
Rxd5 {[%clk 0:01:10.1]} 27. cxd5 {[%clk 0:00:22.4]} 27... Rd8 {[%clk 0:01:06]}
28. Rd2 {[%clk 0:00:17]} 28... Qb6 {[%clk 0:01:00.9]} 29. Kf2 {[%clk 0:00:11.6]}
29... Kg7 {[%clk 0:00:57.7]} 30. Qxb6 {[%clk 0:00:11.2]} 30... cxb6 {[%clk
0:00:57.7]} 31. Ke3 {[%clk 0:00:10.6]} 31... Kf6 {[%clk 0:00:57]} 32. h4 {[%clk
0:00:09.3]} 32... Ke5 {[%clk 0:00:55.3]} 33. f4+ {[%clk 0:00:06.2]} 33... Kd6
{[%clk 0:00:55.2]} 34. Rc2 {[%clk 0:00:03.7]} 34... Kxd5 {[%clk 0:00:51.2]} 35.
Rd2+ {[%clk 0:00:03.7]} 35... Kc5 {[%clk 0:00:50]} 36. Rxd8 {[%clk 0:00:04.6]}
36... Kb4 {[%clk 0:00:50.6]} 37. Rb8 {[%clk 0:00:04.6]} 37... b5 {[%clk
0:00:50.7]} 38. Rb7 {[%clk 0:00:04.8]} 38... e5 {[%clk 0:00:49.9]} 39. fxe5
{[%clk 0:00:04.6]} 39... a5 {[%clk 0:00:49.7]} 40. Rxf7 {[%clk 0:00:04.5]} 40...
a4 {[%clk 0:00:50.5]} 41. bxa4 {[%clk 0:00:04.5]} 41... Kxa4 {[%clk 0:00:50.1]}
42. e6 {[%clk 0:00:04.8]} 42... b4 {[%clk 0:00:50.6]} 43. Ra7+ {[%clk 0:00:04]}
43... Kb5 {[%clk 0:00:49.9]} 44. e7 {[%clk 0:00:04.9]} 44... Kc4 {[%clk
0:00:50.8]} 45. e8=Q {[%clk 0:00:04.5]} 45... Kc3 {[%clk 0:00:51.7]} 46. Qxg6
{[%clk 0:00:03.8]} 46... Kb2 {[%clk 0:00:50.8]} 47. Qd3 {[%clk 0:00:04.1]} 47...
Ka1 {[%clk 0:00:47.8]} 48. Qc4 {[%clk 0:00:03.2]} 48... b3 {[%clk 0:00:48.7]}
49. axb3+ {[%clk 0:00:03.4]} 49... Kb2 {[%clk 0:00:49.4]} 50. b4 {[%clk
0:00:03.3]} 50... Kb1 {[%clk 0:00:49.1]} 51. b5 {[%clk 0:00:03.7]} 51... Kb2
{[%clk 0:00:49.7]} 52. b6 {[%clk 0:00:04.2]} 52... Kb1 {[%clk 0:00:50.6]} 53. b7
{[%clk 0:00:04.6]} 1-0